Cogmind - Beta 15 @@@ ROGUE MODE // 2025.07.30 @ 21:26:45 Player: satan5 Result: Destroyed by Autobeam Turret with Autobeam Performance ------------- Evolutions (0) 0 Regions Visited (2) 400 Robots Destroyed (38) 190 Value Destroyed (785) 785 Prototype IDs (4) 80 Alien Tech Used (0) 0 Bonus (0) 0 TOTAL SCORE: 1455 Bonus ------- None Cogmind --------- Core Integrity 0/250 Matter 300/300 Energy 10/100 System Corruption 0% Temperature Cool (84) Movement Walking (200) Ox1 Location -10/Subcaves Parts ------- > --- POWER (1) -------- (None) > --- PROPULSION (2) --- Cargo Legs > --- UTILITY (2+2) ---- Huge Storage Unit Makeshift Light Armor Plating Makeshift Hacking Suite (+) > --- WEAPON (2) ------- Subdweller Beam Cannon Subdweller Beam Cannon > --- INVENTORY (25) --- Light Treads Spiked Treads Subdweller Monowheel Subdweller Monowheel Heat Sink Subdweller Optics Signal Interpreter Makeshift Kinetic Plating Hacking Suite Medium Laser Medium Laser Subdweller Laser Subdweller Laser Subdweller Laser Subdweller Beam Cannon Assault Rifle Subdweller Machine Gun Subdweller Machine Gun Barrage Gun Grenade Launcher Grenade Launcher Mining Laser Piercing Trap Piercing Trap Peak State ------------ > --- POWER ------------ Light Ion Engine > --- PROPULSION ------- Cargo Legs > --- UTILITY ---------- Huge Storage Unit Makeshift Light Armor Plating Makeshift Hacking Suite > --- WEAPON ----------- Subdweller Beam Cannon Subdweller Beam Cannon > --- INVENTORY -------- Light Treads Subdweller Monowheel Subdweller Monowheel Heat Sink Subdweller Optics Signal Interpreter Hacking Suite Medium Laser Medium Laser Subdweller Laser Subdweller Beam Cannon Assault Rifle Subdweller Machine Gun Subdweller Machine Gun Barrage Gun Grenade Launcher Grenade Launcher Mining Laser Piercing Trap Piercing Trap [Rating: 33] Favorites ----------- Power Light Ion Engine Engine Light Ion Engine Propulsion Light Treads Treads Light Treads Leg Cargo Legs Wheel Subdweller Monowheel Utility Makeshift Light Armor Plating Device Heat Sink Storage Huge Storage Unit Hackware Makeshift Hacking Suite Protection Makeshift Light Armor Plating Weapon Medium Laser Energy Gun Medium Laser Energy Cannon Subdweller Beam Cannon Launcher Grenade Launcher Build | -11 -10 -10 ------- Run | Yrd Mat Sub Slots Evolved . | . . . Power . | . . . Propulsion . | . . . Utility . | . . . Weapon . | . . . Parts Attached 19 | 6 2 11 Power 2 | 1 . 1 Engine 2 | 1 . 1 Core . | . . . Reactor . | . . . Propulsion 4 | 2 . 2 Treads 2 | 2 . . Leg 1 | . . 1 Wheel 1 | . . 1 Hover . | . . . Flight . | . . . Utility 7 | 1 2 4 Device 1 | . 1 . Storage 3 | 1 1 1 Processor . | . . . Hackware 1 | . . 1 Protection 2 | . . 2 Artifact . | . . . Weapon 6 | 2 . 4 Energy Gun 2 | 2 . . Energy Cannon 3 | . . 3 Ballistic Gun . | . . . Ballistic Cannon . | . . . Launcher 1 | . . 1 Special Weapon . | . . . Impact Weapon . | . . . Slashing Weapon . | . . . Piercing Weapon . | . . . Special Melee Weapon . | . . . Unidentified Prototypes 1 | . . 1 Parts Lost 6 | . . 6 Power 2 | . . 2 Propulsion 2 | . . 2 Utility 1 | . . 1 Weapon 1 | . . 1 Highest Loss Streak 3 | . . 3 To Critical Strikes . | . . . Average Backups 12 | 1 5 18 Power . | . 1 . Propulsion 2 | . . 3 Utility 3 | . 1 4 Weapon 7 | . 2 10 Tool/Special . | . . . Unused Backups 18 | . . 18 Power . | . . . Propulsion 4 | . . 4 Utility 4 | . . 4 Weapon 10 | . . 10 Tool/Special . | . . . Average Slot Usage (%) 89 | . 93 86 Engine 11 | . 14 9 Treads 20 | . 28 16 Leg 2 | . . 3 Device 3 | . 8 . Storage 13 | . 14 12 Hackware 2 | . . 3 Protection 7 | . . 12 Energy Gun 13 | . 27 5 Energy Cannon 12 | . . 19 Peak Build Rating 33 | 6 8 33 Average Rating 14 | 5 6 20 On Entrance 4 | . 6 8 Naked Turns . | . . . Heaviest Build 103 | 12 18 103 Greatest Support 55 | 40 40 55 Greatest Overweight (x) 5 | 3 . 5 Average Overweight (x) . | . . 1 Largest Inventory Capacity 25 | 8 10 25 Average Capacity 18 | 7 9 24 Most Carried 24 | 2 9 24 Average Carried 13 | 1 5 19 Final Capacity 25 | 8 10 25 Final Carried 24 | 2 9 24 Class Distribution -------------------- 100% | Mutant Dominant Class ---------------- Mutant | -10/Materials Mutant | -10/Subcaves Resources | -11 -10 -10 ----------- Run | Yrd Mat Sub Matter Collected 469 | 150 124 195 Remotely . | . . . Salvage Created 1057 | 79 485 493 Parts 72 | 8 30 34 Haulers Intercepted 2 | . 2 . Recyclers Shooed 1 | . 1 . Parts Field Recycled . | . . . Retrieved Matter . | . . . Parts Self-Destructed 2 | . . 2 Prevented . | . . . Kills | -11 -10 -10 ------- Run | Yrd Mat Sub Combat Hostiles Destroyed 26 | . 11 15 Guns 11 | . 10 1 Cannons 9 | . . 9 AOE 3 | . . 3 Classes Destroyed 9 | 1 7 1 Worker 1 | . 1 . Tunneler 4 | 4 . . Hauler 2 | . 2 . Recycler 1 | . 1 . Operator 1 | . 1 . Watcher 3 | . 3 . Swarmer 12 | . 9 3 Grunt 4 | . 2 2 Subdweller 10 | . . 10 Best Kill Streak 4 | 4 4 3 Combat Bots Only 3 | . 3 3 Max Kills in Single Turn 2 | 1 2 1 Gunslinging 1 | . 1 . Exploded 1 | . . 1 Melee . | . . . Uniques/NPCs Destroyed . | . . . Combat | -11 -10 -10 -------- Run | Yrd Mat Sub Hostile Shots Fired 99 | . 37 62 Missed 33 | . 12 21 Hits 66 | . 25 41 Projectile 66 | . 25 41 AOE 1 | . . 1 Critical Strikes 2 | . . 2 Damage Taken 1243 | . 358 885 Core 252 | . 94 158 Absorbed by Shields . | . . . Regen/Repaired (Parts) 41 | . 41 . Core Remaining (%) 100 | 100 . . Volleys Fired 97 | 7 51 39 Largest 2 | 2 2 2 Hottest 160 | 100 100 160 Shots Fired 184 | 14 102 68 Gun 134 | 14 102 18 Cannon 41 | . . 41 Launcher 9 | . . 9 Special . | . . . Kinetic . | . . . Thermal 175 | 14 102 59 Explosive 9 | . . 9 Electromagnetic . | . . . Robot Hit Streak 14 | 4 14 7 Robot Miss Streak 5 | 2 5 3 Penetration Max . | . . . Secondary Targets 3 | . 3 . Max Gunslinging Chain 1 | . 1 . Shots Hit Robots 105 | 8 59 38 Core Hits 44 | 4 24 16 Critical Kills 2 | . . 2 Critical Parts Destroyed . | . . . Critical Strikes 11 | . 8 3 Burn 9 | . 8 1 Meltdown 2 | . . 2 Melee Attacks . | . . . Impact . | . . . Slashing . | . . . Piercing . | . . . Sneak Attacks . | . . . Combat Hostiles . | . . . Follow-up Attacks . | . . . Damage Inflicted 1855 | 112 793 950 Guns 952 | 112 777 63 Cannons 577 | . . 577 Explosions 310 | . . 310 Melee . | . . . Ramming 16 | . 16 . Kinetic . | . . . Thermal 1529 | 112 777 640 Explosive 310 | . . 310 Electromagnetic . | . . . Impact . | . . . Slashing . | . . . Piercing . | . . . Highest Corruption . | . . . Average Corruption . | . . . Corruption Purged . | . . . Corruption Blocked . | . . . Overload Shots . | . . . Overflow Damage 17 | . . 17 Projectiles . | . . . Explosions 17 | . . 17 Melee . | . . . Knockbacks . | . . . Impact . | . . . Kinetic . | . . . Secondary . | . . . Self-Inflicted Damage . | . . . Shots . | . . . Rammed 4 | . 4 . Targets Rammed 4 | . 4 . Kicked . | . . . Crushed . | . . . Highest Temperature 384 | 196 336 384 Average Temperature 82 | 77 63 115 Received Heat Transfer 592 | . 33 559 Effects 2 | . 2 . Shutdowns 1 | . 1 . Interference 1 | . 1 . Siege Activations . | . . . Martial Activations . | . . . Shielding Activations . | . . . Robots Disrupted . | . . . Combat Hostiles . | . . . Robots Corrupted . | . . . Combat Hostiles . | . . . Parts Fried . | . . . Impact Corruptions . | . . . Robots Melted 4 | . 2 2 Combat Hostiles 3 | . 1 2 Parts Melted 14 | 1 10 3 Heat Transferred 4181 | 333 2812 1036 Parts Sabotaged . | . . . Parts Stolen . | . . . Parts Stripped . | . . . Power Chain Reactions . | . . . Alert | -11 -10 -10 ------- Run | Yrd Mat Sub Maximum Alert Level . | . . . Low Security (%) 100 | 100 100 . Level 1 . | . . . Level 2 . | . . . Level 3 . | . . . Level 4 . | . . . Level 5 . | . . . High Security . | . . . Max Security . | . . . Peak Influence 176 | 10 176 . Initial . | . . . Average 57 | . 62 . Influence Increases 540 | 20 380 140 Destroy 0b10 Robot/C 320 | . 220 100 Destroy 0b10 Robot/NC 60 | 20 40 . Destroy Leader 60 | . 50 10 Successful Hack 38 | . 38 . Destroy Structure 2 | . 2 . Lose Combat Pursuer 60 | . 30 30 Influence Decreases 453 | 20 260 173 Entered New Map 58 | . . 58 Time Decay 395 | 20 260 115 Squads Dispatched . | . . . Investigation . | . . . Extermination . | . . . Reinforcement . | . . . Assault . | . . . Garrison . | . . . Intercept . | . . . Searches Triggered . | . . . Construction Impeded . | . . . Haulers Reinforced . | . . . Active Scanning Responses . | . . . Cargo Convoy Interrupts . | . . . Stealth | -11 -10 -10 --------- Run | Yrd Mat Sub Distress Signals 2 | . 2 . Communications Jammed . | . . . Distress Signals . | . . . Times Spotted 39 | . 22 17 Peak Tracking Total 5 | . 5 3 Tactical Retreats 3 | . 2 1 Traps | -11 -10 -10 ------- Run | Yrd Mat Sub Traps Triggered 3 | . 2 1 Indirectly . | . . . Trap Hack Attempts . | . . . Triggered . | . . . Disarmed . | . . . Reprogrammed . | . . . Reused . | . . . Traps Extracted . | . . . Installed . | . . . Triggered . | . . . Most Traps Carried 2 | . . 2 Machines | -11 -10 -10 ---------- Run | Yrd Mat Sub Machines Disabled . | . . . Max in Single Turn . | . . . Machines Repaired . | . . . Machines Dismantled . | . . . Machines Sabotaged . | . . . Overloaded Fab Kills . | . . . Hacking | -11 -10 -10 --------- Run | Yrd Mat Sub Machines Accessed 9 | . 9 . Terminals 7 | . 7 . Fabricators . | . . . Repair Stations 1 | . 1 . Recycling Units 1 | . 1 . Scanalyzers . | . . . Garrison Access . | . . . Total Hacks 32 | . 32 . Successful 15 | . 15 . Failed 17 | . 17 . Catastrophic . | . . . Database Lockouts . | . . . Manual 25 | . 25 . Terminals 25 | . 25 . Fabricators . | . . . Repair Stations 3 | . 3 . Recycling Units 4 | . 4 . Scanalyzers . | . . . Garrison Access . | . . . Terminal Hacks 6 | . 6 . Robot Analysis 4 | . 4 . Prototype ID Bank 2 | . 2 . Fabricator Hacks . | . . . Repair Station Hacks 2 | . 2 . Scan Component 1 | . 1 . Repair 1 | . 1 . Recycling Unit Hacks 1 | . 1 . Retrieve Components 1 | . 1 . Scanalyzer . | . . . Garrison Access Hacks . | . . . Unauthorized Hacks 6 | . 6 . Terminals 6 | . 6 . Botnet 5 | . 5 . Operators 1 | . 1 . Fabricators . | . . . Repair Stations . | . . . Recycling Units . | . . . Scanalyzers . | . . . Garrison Access . | . . . Data Cores Recovered 1 | . 1 . Used . | . . . Hacking Detections 9 | . 9 . Full Trace Events . | . . . Feedback Events . | . . . Feedback Blocked . | . . . Robot Schematics Acquired . | . . . Robots Built . | . . . Authchips . | . . . Time . | . . . Total Robot Build Rating . | . . . Part Schematics Acquired . | . . . Parts Built . | . . . Authchips . | . . . Time . | . . . Total Part Build Rating . | . . . Parts Repaired 1 | . 1 . Time 26 | . 26 . Parts Recycled . | . . . Recycled Matter . | . . . Retrieved Matter . | . . . Retrieved Components 7 | . 7 . Parts Scanalyzed . | . . . Part Schematics Acquired . | . . . Parts Damaged . | . . . Bothacking | -11 -10 -10 ------------ Run | Yrd Mat Sub Used RIF Installer . | . . . Robots Hacked . | . . . Non-combat . | . . . Combat . | . . . Robot Hacks Applied . | . . . Relay Couplers Released . | . . . Fabnet Peak Effective % . | . . . Robots Rewired . | . . . Allies Hacked . | . . . Hacks Repelled . | . . . Allies | -11 -10 -10 -------- Run | Yrd Mat Sub Total Allies . | . . . Largest Group . | . . . Highest-Rated Group . | . . . Highest-Rated Ally . | . . . Total Orders . | . . . Ally Attacks . | . . . Total Damage . | . . . Kills . | . . . Allies Corrupted . | . . . Allies Melted . | . . . Intel | -11 -10 -10 ------- Run | Yrd Mat Sub Active Infowar (turns) . | . . . Robot Analysis Total 4 | . 4 . Derelict Logs Recovered . | . . . Drone Launches . | . . . Drone Recoveries . | . . . Exploration | -11 -10 -10 ------------- Run | Yrd Mat Sub Turns Passed 3283 | 109 1194 1980 Spaces Moved 1365 | 51 620 694 Core 7 | 7 . . Treads 1005 | 44 620 341 Legs 346 | . . 346 Wheels 7 | . . 7 Hover . | . . . Flight . | . . . Fastest Speed 50 | 50 160 160 Average Speed 209 | 151 160 258 Slowest Speed 560 | 200 160 560 Overloaded Moves . | . . . Propulsion Burnouts . | . . . Robots Hopped . | . . . Potential Cave-ins . | . . . Cave-ins Triggered . | . . . Exploration Rate (%) 46 | 4 96 40 Regions Visited 2 Branch Regions 1 Pre-discovered Areas . | . . . Known Exits Taken . | . . . Unknown Exits Taken 2 | 1 1 . Scrap Searched 12 | . . 12 Spaces Dug . | . . . Terrain Destroyed 19 | . . 19 Melee . | . . . Projectile 5 | . . 5 AOE 14 | . . 14 Terrain Rammed . | . . . Walls Destroyed . | . . . Machines Disabled . | . . . Actions | -11 -10 -10 --------- Run | Yrd Mat Sub Total 1595 | 66 717 812 Wait 75 | . 33 42 Move 1363 | 50 619 694 Hop . | . . . Pick Up 32 | 3 6 23 Fast Attach 8 | 5 3 . Attach 7 | 1 . 6 Detach 1 | . 1 . Swap 5 | . . 5 Drop 3 | . . 3 Fire 97 | 7 51 39 Melee . | . . . Ram . | . . . Kick . | . . . Crush 4 | . 4 . Escape Stasis . | . . . Rewire . | . . . Trap . | . . . Miscellaneous . | . . . Route ------- -11/Scrapyard -10/Materials (discovered 5 exits: [*Mat x3] / [*Min] / [*Sub]) -10/Subcaves (discovered 2 exits: [*Mat] / [*Rec]) History --------- Turn | Location | Event 26 | -11/Scrapyard | Discovered new exit (range 15) 110 | -11/Scrapyard | Entered Materials 218 | -10/Materials | Discovered new exit (range 6) 301 | -10/Materials | Build established: Mutant 375 | -10/Materials | Discovered new exit (range 5) 913 | -10/Materials | Discovered new exit (range 10) 1021 | -10/Materials | Discovered new exit (range 14) 1074 | -10/Materials | Repaired Med. Laser 1269 | -10/Materials | Discovered new exit (range 13) 1304 | -10/Materials | Entered Subcaves 1305 | -10/Subcaves | Approached by a straggling Scientist 1357 | -10/Subcaves | Disturbed a concealed Subdweller 1531 | -10/Subcaves | Disturbed a concealed Subdweller 1544 | -10/Subcaves | Core integrity fell below 50% 2535 | -10/Subcaves | A Subdweller sparked back to life 2535 | -10/Subcaves | A Subdweller sparked back to life 2535 | -10/Subcaves | A Subdweller sparked back to life 2539 | -10/Subcaves | Core integrity fell below 20% 2569 | -10/Subcaves | Found Prototype Leg 2570 | -10/Subcaves | Identified Cargo Legs 2571 | -10/Subcaves | Attached Cargo Legs, gained temporary slots: Utility x2 2579 | -10/Subcaves | Lost 3 parts (1n1u1w) 2684 | -10/Subcaves | Disturbed a concealed Subdweller 3026 | -10/Subcaves | Discovered new exit (range 12) 3274 | -10/Subcaves | Discovered new exit (range 11) 3284 | -10/Subcaves | Destroyed by Autobeam Turret with Autobeam Last Messages --------------- 02683_ Found Spk. Treads. 02683_ Found 62 Matter. 02684_ 2G-HV6(R) angrily emerges from the Twisted Machinery. 02685_ Lgt. Ion Engine destroyed. 02685_ 2G-HV6(R) destroyed. 02690_ Acquired Spk. Treads. 02753_ Subatomizers dissect the Disposable Heat Sink. 03019_ Searching scrap... 03019_ Found Mak. Kinetic Plating. 03019_ Found 65 Matter. 03023_ Acquired Mak. Kinetic Plating. 03026_ EXIT=FOUND 03030_ QP-ORH(u) tweaks Twisted Machinery. 03274_ EXIT=FOUND 03278_ S-10 Pest destroyed. 03282_ Lgt. Ion Engine fries itself beyond repair. 03284_ S-10 Pest destroyed. Map ----- +----------------------------------------------------+ | ??# ""#???????????????????# ### ## #?# | | ??## ""#???????????????????## ## ## ### # | | ???# < ""#????????????????????##### ### # | | ???# "###???????????????##???????# #?# | | ???# "#????????????????## ###????## #?# | | ???# "##????????????????# ?????# ### | | ???#"##?????????????????# ????## ## | | ???##???????????????????# ##### ## | | ?????????????????????????# # ## | | ??????????????????????????# #### | | ??????????????????????????## ##??# | | ???????????????????????????# # ###### | | ??????????????????????????## ####### | | ??????????????????????????# #????### | | ??????????????????????????# #??????? | | ??????????????????????????## ##??????? | | ???????????????????????????## ##???????# | | ????????????????????????????#### #??##??### | | ???????????????????????????????## ### #?## | | ????????????????????????????????## ### | | ?????????????????????????????????## ## ## | | ??????????? ?????????????????????## "# | | ??????????# ???#???###???####### "# | | ?????????? ## ### ##### # # "# | | ????????? * % # ### | | ?????????? [&@= ## &%%&& #?? | | ??????????# ## *%&=[# #### ##"" "& #?? | | ????????????????????## %%#######??###### "%&& #?? | | ?????????????????????# =#?????????????# =& ##?? | | ?????????????????????# #?????????????#" "##??? | | ????????????????????? ?????????????#&" #???? | | ???????????????????? ?????????????#######???? | | ??????????????????? ???????????????????????? | | ??????????????????#" t ???????????????????????? | | ??????????????????#" " " ???????????????????????? | | ??????????????????#"""" ""???????????????????????? | | ??????????????????#####<###??????????????????????? | | ??????????????????????##????????????????????????## | | ????????????????????????????????????????????????# | | ???????????????????????????????????????????????## | | ???????????????????????????????????????????????#"" | | ??????????????????????????????????????????????##"& | | ??????????????????????????????????????????????# " | | ??????????????????????????????????????????????# "" | | ??????????????????????????????????????????????##"" | | ???????????????????????????????????????????????# | | ?????????????????????????????????????????????? | | ????????????????????????????????????????????? | | ???????????????????????????????????????????? | | ??????????????????????????????????????????? | +----------------------------------------------------+ Best States ------------- Heat Dissipation 35 Energy Generation 10 Energy Capacity 125 Matter Stores 300 Matter Capacity 300 Sight Range 16 Terrain Scan Density 10 Armor Coverage 100 Evasion (%) 40 Recoil Reduction 2 Offensive Hacking 11 Item Schematics ----------------- None Robot Schematics ------------------ None Fabricated ------------ Nothing Repaired ---------- Med. Laser | 41% | -10/Materials Alien Tech Used ----------------- None Achievements -------------- None Challenges ------------ None Game ------ Seed AbsorptionGuidanceCloak Manual? 0 Play Time 00:17:12 Cumulative 331.3 hours Start 2025.07.30 @ 21:12:17 End 2025.07.30 @ 21:26:45 Sessions 1 Manual Loads 0 Difficulty Rogue Special Mode None Game No. 158 Rogue 144 Adventurer 14 Explorer 0 Win Type - Total 18 Types 15/0/1/1/0/0/0/0/1/0 Lore% 64 Gallery% 73 Achievement% 68 Wizard Run 0 Options --------- Layout 1 ASCII 0 Keyboard 0 Movement Arrows Keybinds 0 Fullscreen 1 Font 24/Smallcaps Map View 50x35 Zoom Use 0% Tactical HUD 1 Map Filters NONE Filters NONE Steam 1 RUN: bb20bbd2-41a9-48d0-b609-5aa15ed248fc